bitfinex/quotes_ETHUSD_20240820
["timestamp","ask_amount","ask_price","bid_price","bid_amount"]
[1724165418951,10.23975,2596.9,2596.6,0.299575]
[1724165419305,2.3923,2596.8,2596.6,0.299575]
[1724165420424,5.328,2596.9,2596.6,0.299575]
[1724165420425,2.3255,2597.2,2596.7,3.85097]
[1724165420602,1.93673339,2598.7,2596.7,3.85104]
[1724165420603,2.3255,2598.7,2596.7,3.85104]
[1724165420803,2.3255,2598.7,2597.7,3.84955]
[1724165421054,0.4155111,2598.6,2597.7,3.84945]
[1724165421261,0.4155111,2598.6,2597.9,3.84923]
[1724165421753,0.4155111,2598.6,2596.9,6.34498]
[1724165421754,2.3268,2598.1,2596.9,6.34498]
[1724165421958,2.3268,2598.1,2597.3,3.85003]
[1724165421959,5.328,2597.7,2597.3,3.85003]
[1724165422105,5.328,2597.7,2597.5,3.84976]
[1724165422307,5.328,2597.7,2597.1,3.85043]
[1724165422556,6.17586,2598.1,2597.3,3.85003]
[1724165422784,7.727919,2598.1,2597.3,7.70007]
[1724165422941,2.3268,2598.1,2597.6,3.84961]
[1724165423148,2.3268,2598.1,2597.2,3.85024]
[1724165423149,6.17581,2598.1,2597.2,3.85024]
[1724165423640,3.84921,2598.0,2597.2,3.85018]
[1724165423850,1.002502,2598.0,2597.2,3.85018]
[1724165424041,3.84911,2598.0,2597.2,3.85018]
[1724165424259,3.84916,2598.0,2597.2,3.85017]
[1724165424555,3.84965,2597.7,2596.8,3.85082]
[1724165424758,3.85002,2597.4,2596.6,4.150665]
[1724165424966,5.753465,2597.6,2596.8,3.85084]
[1724165425140,2.3685,2597.6,2597.0,3.85049]
[1724165425545,2.3685,2597.6,2596.7,0.4150665]
[1724165425546,3.85009,2597.4,2596.7,0.4150665]
[1724165425743,0.621859,2597.4,2596.6,0.299575]
[1724165425978,2.3684,2597.0,2596.6,0.299575]
[1724165426145,3.85076,2596.9,2596.6,0.299575]
[1724165426374,10.06974,2597.0,2596.6,0.299575]
[1724165426586,6.21904,2597.0,2596.6,0.299575]
[1724165426751,3.85076,2596.9,2596.6,0.299575]
[1724165426927,1.00698,2596.9,2596.6,0.299575]
[1724165427134,3.0,2597.2,2596.7,3.85094]
[1724165427486,3.85031,2597.2,2596.6,0.299575]
[1724165427778,3.8506,2597.0,2596.6,0.299575]
[1724165427978,6.31307,2596.8,2596.6,0.299575]
[1724165428271,2.4621,2597.4,2596.6,0.299575]
[1724165428475,4.781476,2597.3,2596.6,0.299575]
[1724165428676,4.781476,2597.3,2596.6,4.150755]
[1724165428677,3.0,2597.2,2596.6,4.150755]
[1724165428875,3.85056,2597.1,2596.6,0.299575]
[1724165429032,3.0,2597.2,2596.6,0.299575]
[1724165429433,3.85052,2597.1,2596.6,0.299575]
[1724165429748,0.685052,2597.0,2596.6,0.299575]
[1724165431329,3.0,2597.2,2596.6,0.299575]
[1724165431681,2.4621,2597.4,2596.6,0.299575]
[1724165431846,2.4621,2597.4,2596.7,3.85091]
[1724165432046,3.84045,2597.1,2596.6,0.299575]
[1724165432295,0.07020682,2597.0,2596.6,0.299575]
[1724165432437,4.3118925,2597.0,2596.6,0.299575]
[1724165432976,3.85082,2596.9,2596.6,0.299575]
[1724165433180,10.70165,2596.9,2596.6,0.299575]
[1724165433380,2.40658536,2596.8,2596.6,0.299575]
[1724165433562,3.85104,2596.7,2596.6,0.299575]
[1724165433731,9.01293154,2596.7,2596.6,0.299575]
[1724165433950,12.63287294,2596.7,2596.6,0.299575]
[1724165434280,16.48391294,2596.7,2596.6,0.299575]
[1724165434447,18.73831294,2596.7,2596.6,0.299575]
[1724165435193,14.88727294,2596.7,2596.6,0.299575]
[1724165435495,5.3243414,2596.7,2596.6,0.299575]
[1724165435663,17.4274614,2596.7,2596.6,0.299575]
[1724165436084,21.2785014,2596.7,2596.6,0.299575]
[1724165436749,17.4274614,2596.7,2596.6,0.299575]
[1724165440210,13.5764214,2596.7,2596.6,0.299575]
[1724165440508,9.1753814,2596.7,2596.6,0.299575]
[1724165441159,10.47801754,2596.7,2596.6,0.299575]
[1724165441362,14.32905754,2596.7,2596.6,0.299575]
[1724165441607,18.18009754,2596.7,2596.6,0.299575]
[1724165441809,22.03113754,2596.7,2596.6,0.299575]
[1724165441963,18.73009754,2596.7,2596.6,0.299575]
[1724165442163,14.87905754,2596.7,2596.6,0.299575]
[1724165442406,14.32905754,2596.7,2596.6,0.299575]
[1724165443021,0.0699414,2596.7,2596.6,0.299575]
[1724165443367,3.85024,2597.3,2596.6,0.299575]
[1724165443368,3.85046,2597.1,2596.6,0.299575]
[1724165443677,3.8506,2597.0,2596.6,0.299575]
[1724165443868,0.06143893,2596.9,2596.6,0.299575]
[1724165444065,3.91220893,2596.9,2596.6,0.299575]
[1724165444269,7.70208,2596.7,2596.6,0.299575]
[1724165444466,7.76356935,2596.7,2596.6,0.299575]
[1724165445110,10.76356935,2596.7,2596.6,0.299575]
[1724165445680,19.95560935,2596.7,2596.6,0.299575]
[1724165445866,20.50560935,2596.7,2596.6,0.299575]
[1724165446070,18.82572837,2596.7,2596.6,0.299575]
[1724165446304,12.25352935,2596.7,2596.6,0.299575]
[1724165446625,16.10456935,2596.7,2596.6,0.299575]
[1724165446914,12.25352935,2596.7,2596.6,0.299575]
[1724165447292,16.10456935,2596.7,2596.6,0.299575]
[1724165447485,8.40248935,2596.7,2596.6,0.299575]
[1724165447662,0.06148935,2596.7,2596.6,4.150765]
[1724165447870,5.341,2597.3,2596.8,3.8508]
[1724165448065,0.0620276,2597.2,2597.0,3.85059]
[1724165448270,2.49,2597.8,2596.6,0.9517715]
[1724165448271,2.49,2597.8,2597.1,3.85044]
[1724165448518,3.91000919,2597.7,2596.9,3.85064]
[1724165448697,3.84996,2597.5,2597.0,0.385064]
[1724165448949,3.85026,2597.3,2596.6,0.9517715]
[1724165449107,3.85058,2597.1,2596.6,0.9517715]
[1724165449273,3.85047,2597.1,2596.6,0.9517715]
[1724165449624,0.0593714,2597.0,2596.6,0.299575]
[1724165449774,3.85078,2596.9,2596.6,0.299575]
[1724165450412,3.85104,2596.7,2596.6,0.299575]
[1724165450616,6.85104,2596.7,2596.6,0.299575]
[1724165450816,7.76156357,2596.7,2596.6,0.299575]
[1724165450971,6.91052357,2596.7,2596.6,0.299575]
[1724165451177,8.03011073,2596.7,2596.6,0.299575]
[1724165451372,6.91052357,2596.7,2596.6,0.299575]
[1724165452529,3.05948357,2596.7,2596.6,0.299575]
[1724165452750,3.91052357,2596.7,2596.6,0.299575]
[1724165452887,3.05948357,2596.7,2596.6,0.299575]
[1724165453283,0.05948357,2596.7,2596.6,0.299575]
[1724165453594,6.85082,2596.9,2596.6,0.299575]
[1724165453945,3.85091,2596.8,2596.6,0.299575]
[1724165454125,3.91027396,2596.8,2596.6,0.299575]
[1724165454574,0.05936396,2596.8,2596.6,0.299575]
[1724165455019,3.91027396,2596.8,2596.6,0.299575]
[1724165455228,7.70208,2596.7,2596.6,0.299575]
[1724165455589,7.76114735,2596.7,2596.6,0.299575]
[1724165455814,3.91010735,2596.7,2596.6,0.299575]
[1724165456019,0.05906735,2596.7,2596.6,0.299575]
[1724165456463,3.0,2596.9,2596.6,0.299575]
[1724165456733,3.85089,2596.8,2596.6,0.299575]
[1724165456913,3.85104,2596.7,2596.6,0.299575]
[1724165457228,0.06027916,2596.7,2596.6,0.299575]
[1724165457414,3.91131916,2596.7,2596.6,0.299575]
[1724165457620,7.70208,2596.7,2596.6,0.299575]
[1724165457816,9.02462931,2596.7,2596.6,0.299575]
[1724165458126,3.91048499,2596.7,2596.6,0.299575]
[1724165458521,7.76152499,2596.7,2596.6,0.299575]
[1724165459112,3.91048499,2596.7,2596.6,0.299575]
[1724165459502,7.76152499,2596.7,2596.6,0.299575]
[1724165459703,3.91048499,2596.7,2596.6,0.299575]
[1724165461034,9.07175049,2596.7,2596.6,0.299575]
[1724165461327,15.68094527,2596.7,2596.6,0.299575]
[1724165461629,18.68094527,2596.7,2596.6,0.299575]
[1724165461925,14.82990527,2596.7,2596.6,0.299575]
[1724165462336,14.41925049,2596.7,2596.6,0.299575]
[1724165463017,12.07175049,2596.7,2596.6,0.299575]
[1724165463403,15.92279049,2596.7,2596.6,0.299575]
[1724165463623,16.33350591,2596.7,2596.6,0.299575]
[1724165463942,16.33345278,2596.7,2596.6,0.299575]
[1724165464909,10.76152499,2596.7,2596.6,0.299575]
[1724165465824,14.61256499,2596.7,2596.6,0.299575]
[1724165466153,15.023182,2596.7,2596.6,0.299575]
[1724165467207,11.172142,2596.7,2596.6,0.299575]
[1724165467433,10.76152499,2596.7,2596.6,0.299575]
[1724165467873,6.91048499,2596.7,2596.6,0.299575]
[1724165468222,10.76152499,2596.7,2596.6,0.299575]
[1724165468575,6.91048499,2596.7,2596.6,0.299575]
[1724165468755,10.76152499,2596.7,2596.6,0.299575]
[1724165469256,12.37177749,2596.7,2596.6,0.299575]
[1724165469434,12.78270344,2596.7,2596.6,0.299575]
[1724165469822,16.63374344,2596.7,2596.6,0.299575]
[1724165470069,12.78270344,2596.7,2596.6,0.299575]
[1724165470369,16.63374344,2596.7,2596.6,0.299575]
[1724165470922,15.04767115,2596.7,2596.6,0.299575]
[1724165471278,12.78270344,2596.7,2596.6,0.299575]
[1724165471975,18.89865922,2596.7,2596.6,0.299575]
[1724165472129,15.04761922,2596.7,2596.6,0.299575]
[1724165472466,12.78270344,2596.7,2596.6,0.299575]
[1724165472669,15.04763058,2596.7,2596.6,0.299575]
[1724165472882,17.34339951,2596.7,2596.6,0.299575]
[1724165473231,12.78270344,2596.7,2596.6,0.299575]
[1724165473628,12.78265725,2596.7,2596.6,0.299575]
[1724165474347,16.63365222,2596.7,2596.6,0.299575]
[1724165474569,12.78261222,2596.7,2596.6,0.299575]
[1724165474751,16.63365222,2596.7,2596.6,0.299575]
[1724165475065,12.78261222,2596.7,2596.6,0.299575]
[1724165475252,16.63365222,2596.7,2596.6,0.299575]
[1724165475461,12.78261222,2596.7,2596.6,0.299575]
[1724165475661,16.63365222,2596.7,2596.6,0.299575]
[1724165475824,12.78261222,2596.7,2596.6,0.299575]
[1724165476032,16.63365222,2596.7,2596.6,0.299575]
[1724165476366,12.78261222,2596.7,2596.6,0.299575]
[1724165476544,16.63365222,2596.7,2596.6,0.299575]
[1724165477029,12.78261222,2596.7,2596.6,0.299575]
[1724165477665,16.63365222,2596.7,2596.6,0.299575]
[1724165477830,11.17235972,2596.7,2596.6,0.299575]
[1724165478039,0.05944499,2596.7,2596.6,0.299575]
[1724165478333,8.11285861,2596.7,2596.6,0.299575]
[1724165478547,12.01947182,2596.7,2596.6,0.299575]
[1724165479064,8.16843182,2596.7,2596.6,0.299575]
[1724165479459,7.75765321,2596.7,2596.6,0.299575]
[1724165479658,8.16844929,2596.7,2596.6,0.299575]
[1724165479887,13.72003351,2596.7,2596.6,0.299575]
[1724165480289,22.17286918,2596.7,2596.6,0.299575]
[1724165480495,7.70356,2596.2,2596.1,0.127109]
[1724165480673,8.11435608,2596.2,2596.1,0.127109]
[1724165480873,8.16946363,2596.2,2596.1,0.127109]
[1724165481074,4.31768363,2596.2,2596.1,0.127109]
[1724165481495,0.05510755,2596.2,2596.1,0.127109]
[1724165481910,3.8517,2596.3,2596.1,0.027109]
[1724165482209,0.05474711,2596.2,2596.1,0.027109]
[1724165482559,3.8517,2596.3,2596.1,0.027109]
[1724165482768,0.05481895,2596.2,2596.1,0.027109]
[1724165482981,3.85164,2596.3,2596.1,0.6600969]
[1724165483221,0.05513719,2596.2,2596.1,0.027109]
[1724165483394,3.85164,2596.3,2596.1,0.027109]
[1724165483716,3.0,2596.7,2596.1,0.027109]
[1724165483717,0.05513706,2596.2,2596.1,0.027109]
[1724165484385,7.85849,2596.4,2596.1,0.027109]
[1724165484584,0.05492716,2596.2,2596.1,0.027109]
[1724165484926,7.85849,2596.4,2596.1,0.027109]
[1724165485104,0.05542986,2596.2,2596.1,0.027109]
[1724165485300,5.177978,2596.4,2596.1,0.027109]
[1724165485503,3.90670188,2596.2,2596.1,0.027109]
[1724165485713,4.2626794,2596.2,2596.1,0.027109]
[1724165486022,3.90763057,2596.2,2596.1,0.027109]
[1724165486324,0.05585057,2596.2,2596.1,0.027109]
[1724165486635,3.85105,2596.7,2596.1,0.027109]
[1724165486795,3.8512,2596.6,2596.2,2.2776]
[1724165487124,3.85135,2596.5,2596.2,2.2776]
[1724165487424,4.007,2596.6,2596.2,2.2776]
[1724165487770,0.05354673,2596.5,2596.2,2.2776]
[1724165487977,0.05354673,2596.5,2596.1,0.027109]
[1724165487978,3.90488673,2596.5,2596.1,0.027109]
[1724165488198,4.007,2596.3,2596.1,0.027109]
[1724165488721,3.9051516,2596.2,2596.1,0.027109]
[1724165488899,7.7569316,2596.2,2596.1,0.027109]
[1724165489434,8.16794422,2596.2,2596.1,0.027109]
[1724165490477,15.22044445,2596.2,2596.1,0.027109]
[1724165490686,17.49490638,2596.2,2596.1,0.027109]
[1724165490902,19.05763277,2596.2,2596.1,0.027109]
[1724165491230,13.23211376,2596.2,2595.1,2.4878]
[1724165491377,3.85328,2595.2,2595.0,1.0]
[1724165491578,4.007,2595.4,2595.0,1.0]
[1724165491579,4.007,2595.1,2595.0,1.0]
[1724165491820,14.56308351,2595.1,2595.0,1.0]
[1724165492037,3.85391,2594.8,2594.2,2.3296]
[1724165492180,4.007,2594.6,2594.2,2.3296]
[1724165492681,0.05192093,2594.5,2594.2,2.3296]
[1724165492987,0.05192093,2594.5,2593.8,3.85526]
[1724165492988,0.45781302,2594.5,2593.8,3.85527]
[1724165493199,0.45781302,2594.5,2593.6,2.4416]
[1724165493200,0.05192093,2594.5,2593.6,2.4416]
[1724165493401,7.007,2595.3,2594.7,3.85397]
[1724165493578,4.007,2595.3,2594.7,3.85397]
[1724165493888,3.0,2595.5,2594.4,2.4416]
[1724165493889,4.007,2595.0,2594.4,2.4416]
[1724165494121,4.007,2594.7,2594.4,2.4416]
[1724165494478,3.8535,2595.1,2594.4,2.4416]
[1724165494479,9.2005,2595.1,2594.4,2.4416]
[1724165494682,9.2005,2595.1,2594.4,6.54012]
[1724165494880,9.2005,2595.1,2594.4,2.68576]
[1724165495185,5.347,2595.1,2594.5,3.85421]
[1724165495581,5.347,2595.1,2594.8,3.85375]
[1724165495926,5.347,2595.1,2594.7,3.85387]
[1724165496128,5.347,2595.1,2594.4,2.4416]
[1724165496422,9.20045,2595.1,2594.4,2.4416]
[1724165496579,10.505815,2595.1,2594.4,2.4416]
[1724165496778,10.505815,2595.1,2594.1,2.3198]
[1724165496779,3.85383,2594.9,2594.1,2.3198]
[1724165497096,2.4826,2595.0,2593.8,6.24757]
[1724165497281,3.8542,2594.6,2593.8,6.24757]
[1724165497715,5.347,2594.7,2593.9,3.85506]
[1724165497887,9.33624,2595.0,2594.1,3.85479]
[1724165498085,9.33624,2595.0,2594.2,3.85474]
[1724165498326,9.33624,2595.0,2594.3,3.85456]
[1724165498527,9.33624,2595.0,2594.2,3.85464]
[1724165498698,13.1899,2595.0,2594.2,3.85464]
[1724165498901,3.85416,2594.6,2593.8,6.24751]
[1724165499106,3.85416,2594.6,2593.1,0.02629671]
[1724165499107,2.3039,2594.6,2593.7,3.85548]
[1724165499312,9.20109,2594.7,2593.5,2.4957]
[1724165499516,5.347,2594.7,2594.0,3.85495]
[1724165499825,5.347,2594.7,2594.0,3.85496]
[1724165499991,5.347,2594.7,2594.0,4.625965]
[1724165500195,5.2698,2595.0,2593.8,2.3859]
[1724165500399,3.85394,2594.8,2594.0,3.8549]
[1724165500617,3.85409,2594.7,2594.0,3.8549]
[1724165500796,3.85427,2594.6,2593.8,6.24124]
[1724165500998,3.85427,2594.6,2593.8,7.250846]
[1724165501199,2.3914,2594.6,2593.5,2.4045]
[1724165501398,5.3914,2594.6,2593.5,2.4045]
[1724165501630,3.85457,2594.4,2593.7,3.85547]
[1724165501835,3.85418,2594.6,2593.8,6.25978]
[1724165502134,3.85442,2594.5,2593.8,2.4045]
[1724165502430,0.385442,2594.4,2593.8,2.4045]
[1724165502626,4.239942,2594.4,2593.8,2.4045]
[1724165502796,9.20109,2594.7,2593.9,3.85516]
[1724165503133,3.0,2595.0,2594.2,7.7095]
[1724165503134,0.05163141,2594.3,2594.2,7.7095]
[1724165503294,3.85357,2595.0,2594.3,2.4501]
[1724165503497,0.05146523,2594.3,2594.1,3.8548]
[1724165503705,5.012997,2594.9,2594.2,3.85467]
[1724165503936,1.159197,2594.9,2593.9,3.85508]
[1724165504133,3.85396,2594.8,2594.0,3.85495]
[1724165504304,0.5013157,2594.7,2594.0,3.85495]
[1724165504833,3.85424,2594.6,2593.9,7.71018]
[1724165505017,5.012917,2594.9,2593.7,3.85541]
[1724165505183,3.8539,2594.8,2594.0,3.85498]
[1724165505389,3.85401,2594.7,2594.0,3.85498]
[1724165505588,3.85401,2594.7,2593.9,3.85519]
[1724165505589,3.85444,2594.5,2593.9,3.85519]
[1724165505787,3.85444,2594.5,2593.8,6.17825]
[1724165506002,7.70816,2594.7,2593.9,3.85509]
[1724165506225,7.70816,2594.7,2593.8,6.17825]
[1724165506226,0.97540387,2594.7,2593.8,2.323]
[1724165506530,3.85431,2594.5,2593.8,3.85534]
[1724165506739,7.70846,2594.6,2593.9,3.85518]
[1724165507032,3.85421,2594.6,2593.8,3.85526]
[1724165507202,1.159197,2594.9,2594.3,3.8545]
[1724165507386,3.85302,2595.4,2594.6,3.85413]
[1724165507387,3.85303,2595.4,2594.6,3.85413]
[1724165507589,3.85374,2594.9,2594.3,0.62957]
[1724165507836,3.85374,2594.9,2594.1,2.4412]
[1724165507837,3.8541,2594.7,2594.1,2.4412]
[1724165508288,3.85443,2594.5,2593.8,3.85534]
[1724165508489,3.85439,2594.5,2593.8,3.85534]
[1724165508692,3.85439,2594.5,2593.8,3.85524]
[1724165508928,4.625239,2594.5,2593.7,2.4777]
[1724165509230,3.85468,2594.3,2593.7,2.4777]
[1724165509429,4.625239,2594.5,2593.7,6.33311]
[1724165509635,3.85454,2594.4,2593.7,6.33311]
[1724165509835,3.8546,2594.3,2593.7,2.4777]
[1724165510153,5.347,2594.7,2593.7,2.4777]
[1724165510154,9.2011,2594.7,2593.8,3.85521]
[1724165510294,3.85424,2594.6,2593.9,3.85513]
[1724165510495,2.4985,2594.9,2593.9,3.85513]
[1724165510731,3.85449,2594.4,2593.7,6.966374]
[1724165511028,3.8547,2594.3,2593.7,2.4777]
[1724165511536,3.8547,2594.3,2593.6,3.85563]
[1724165511692,2.4747,2594.4,2593.4,3.982929]
[1724165511693,3.85503,2594.1,2593.4,3.982929]
[1724165511896,3.85503,2594.1,2593.5,3.85579]
[1724165512144,7.71001,2594.1,2593.4,0.127109]
[1724165512291,3.85498,2594.1,2593.4,0.127109]
[1724165512832,3.85508,2594.0,2593.4,0.127109]
[1724165513031,3.85498,2594.1,2593.4,0.127109]
[1724165513334,6.13024,2594.2,2593.4,0.127109]
[1724165513548,3.85579,2593.5,2593.4,0.127109]
[1724165513831,3.85575,2593.6,2593.4,0.127109]
[1724165514039,7.6224,2594.2,2593.4,0.127109]
[1724165514204,0.76224,2594.1,2593.4,0.127109]
[1724165514603,4.014,2593.9,2593.4,3.983049]
[1724165514804,4.014,2593.9,2593.4,3.982949]
[1724165515191,4.014,2593.9,2593.4,3.983019]
[1724165515391,6.2894,2594.2,2593.4,7.838839]
[1724165515635,3.85491,2594.1,2593.5,3.85579]
[1724165515835,6.90241,2594.2,2593.6,3.85553]
[1724165516133,10.75723,2594.2,2593.6,3.85553]
[1724165516341,3.85501,2594.1,2593.4,7.838829]
[1724165516504,10.75717,2594.2,2593.5,4.8786029]
[1724165516835,3.85495,2594.1,2593.5,1.0229129]
[1724165517019,3.85521,2593.9,2593.4,0.127109]
[1724165517219,3.85524,2593.9,2593.4,0.127109]
[1724165517535,3.85547,2593.8,2593.4,0.127109]
[1724165517743,4.014,2593.6,2593.4,0.127109]
[1724165518093,0.04691547,2593.5,2593.4,0.127109]
[1724165518807,0.04691547,2593.5,2593.4,3.983049]
[1724165519009,7.8693,2593.9,2593.4,0.127109]
[1724165519198,0.04683958,2593.5,2593.4,0.127109]
[1724165519394,4.014,2593.9,2593.4,0.127109]
[1724165519695,4.34818164,2594.5,2593.7,3.85537]
[1724165519696,6.14141,2594.4,2593.7,3.85537]
[1724165519935,8.16834,2594.5,2593.8,3.93230105]
[1724165520234,3.85447,2594.4,2593.7,6.20929]
[1724165520453,4.014,2594.5,2593.7,3.360298]
[1724165520630,7.86833,2594.5,2593.9,3.85511]
[1724165520813,2.2869,2594.1,2593.4,0.127109]
[1724165521198,3.85485,2594.2,2593.5,0.0771222]
[1724165521399,6.3009,2594.4,2593.5,0.25580312]
[1724165521660,4.014,2594.4,2593.5,0.25580312]
[1724165521956,4.014,2594.4,2593.8,3.85525]
[1724165522299,4.014,2594.4,2593.6,6.20933]
[1724165522526,3.85475,2594.2,2593.6,2.3538]
[1724165522741,7.86811,2594.7,2593.8,3.85521]
[1724165522980,7.86811,2594.7,2593.9,3.85519]
[1724165522981,3.85418,2594.6,2593.9,3.85519]
[1724165523147,7.86811,2594.7,2594.0,0.385519]
[1724165523448,7.86811,2594.7,2594.0,4.240529]
[1724165523999,7.86811,2594.7,2593.6,2.3538]
[1724165524000,3.85442,2594.5,2593.6,2.3538]
[1724165524283,4.014,2594.7,2593.6,2.3538]
[1724165524284,3.85426,2594.6,2593.8,3.85525]
[1724165524415,3.85431,2594.5,2593.8,3.85525]
[1724165524618,4.014,2594.4,2593.6,2.3538]
[1724165524820,3.85494,2594.1,2593.6,2.3538]
[1724165525035,3.85529,2593.9,2593.4,0.127109]
[1724165525248,3.8555,2593.7,2593.4,0.127109]
[1724165525622,3.85579,2593.6,2593.4,0.127109]
[1724165525820,3.85579,2593.5,2593.4,0.127109]
[1724165526543,3.8555,2593.7,2593.4,0.127109]
[1724165526758,3.85525,2593.9,2593.4,0.127109]
[1724165527049,7.86896,2594.1,2593.4,0.127109]
[1724165527050,4.014,2594.1,2593.4,0.127109]
[1724165527352,7.86891,2594.1,2593.4,0.7694379]
[1724165527718,2.3842,2594.6,2593.4,0.7694379]
[1724165527919,7.70826,2594.7,2593.9,3.85507]
[1724165528149,3.85425,2594.6,2593.8,2.4638]
[1724165528349,3.85425,2594.6,2593.8,6.31912]
[1724165528647,3.85412,2594.7,2593.8,6.31912]
[1724165528648,3.85412,2594.7,2593.9,4.872539]
[1724165528855,3.85416,2594.6,2593.9,1.017449]
[1724165529154,3.85433,2594.5,2593.9,1.017449]
[1724165529359,3.85447,2594.4,2593.9,1.017449]
[1724165529854,7.86833,2594.5,2593.9,1.017449]
[1724165530006,7.86833,2594.5,2593.8,2.4638]
[1724165530206,3.85453,2594.4,2593.8,2.4638]
[1724165530409,3.85462,2594.3,2593.8,2.4638]
[1724165530607,3.85491,2594.1,2593.4,3.983039]
[1724165531053,7.7099,2594.1,2593.4,0.127109]
[1724165531250,3.85535,2593.8,2593.4,0.127109]
[1724165532179,7.71079,2593.8,2593.4,0.127109]
[1724165532330,5.027829,2593.8,2593.4,0.127109]
[1724165532535,3.85567,2593.6,2593.4,0.127109]
[1724165532778,8.883289,2593.8,2593.4,0.127109]
[1724165532934,0.04491439,2593.5,2593.4,0.127109]
[1724165533131,3.85549,2593.7,2593.4,0.127109]
[1724165533365,0.04491439,2593.5,2593.4,0.127109]
[1724165533548,4.014,2593.6,2593.4,0.127109]
[1724165533762,0.04491439,2593.5,2593.4,0.127109]
[1724165534349,0.04491439,2593.5,2593.4,2.427609]
[1724165534698,3.90104087,2593.5,2593.4,0.127109]
[1724165534833,11.01763496,2593.5,2593.4,0.127109]
[1724165535184,17.87342496,2593.5,2593.4,0.127109]
[1724165535350,14.01763496,2593.5,2593.4,0.127109]
[1724165536196,10.16184496,2593.5,2593.4,0.127109]
[1724165536354,2.4487,2593.4,2592.0,0.00254761]
[1724165536559,7.71694,2591.7,2591.6,3.52530992]
[1724165536902,3.85966,2590.9,2590.4,0.42895287]
[1724165537076,4.014,2590.9,2590.4,0.42895287]
[1724165537280,4.05795816,2590.9,2590.4,0.42895287]
[1724165538693,5.40895816,2590.9,2590.4,0.42895287]
[1724165539400,9.80951398,2590.9,2590.4,0.42895287]
[1724165540045,5.40895816,2590.9,2590.4,0.42895287]
[1724165540739,9.26861816,2590.9,2590.4,0.42895287]
[1724165540905,13.12827816,2590.9,2590.4,0.42895287]
[1724165541106,9.26861816,2590.9,2590.4,0.42895287]
[1724165541340,5.40895816,2590.9,2590.4,0.42895287]
[1724165542150,0.04395816,2590.9,2590.4,0.42895287]
[1724165542310,0.04395816,2590.9,2590.7,7.7197]
[1724165542495,5.365,2591.3,2590.5,2.3319]
[1724165542699,3.0,2591.5,2590.4,0.42895287]
[1724165542700,5.40655119,2590.9,2590.4,0.42895287]
[1724165543026,5.40655347,2590.9,2590.5,3.86014]
[1724165543398,5.40655347,2590.9,2590.7,7.71963]
[1724165543399,0.04155347,2590.9,2590.7,7.71963]
[1724165543750,5.365,2591.3,2590.8,3.986899]
[1724165544250,5.365,2591.3,2590.8,0.127109]
[1724165544251,0.04108144,2591.2,2590.8,0.127109]
[1724165544650,3.85852,2591.7,2590.9,3.85961]
[1724165544853,3.85852,2591.7,2591.0,3.85951]
[1724165544854,0.04164883,2591.1,2591.0,3.85951]
[1724165545062,0.04164883,2591.1,2590.9,3.85961]
[1724165545063,5.365,2591.7,2590.9,3.85955]
[1724165545208,0.03935649,2591.1,2590.8,0.127109]
[1724165545403,5.365,2591.3,2590.8,0.127109]
[1724165545718,0.038297,2591.2,2590.8,0.127109]
[1724165545923,0.038297,2591.2,2590.8,3.986909]
[1724165546225,0.03839412,2591.1,2590.8,3.986909]
[1724165546757,5.365,2591.3,2590.8,3.986909]
[1724165546967,0.03802351,2591.0,2590.8,0.127109]
[1724165547184,5.365,2591.3,2590.8,0.127109]
[1724165547337,0.03815777,2590.9,2590.8,0.127109]
[1724165547539,5.365,2591.3,2590.8,0.127109]
[1724165547735,0.03787526,2590.9,2590.8,0.127109]
[1724165548035,5.40310394,2590.9,2590.8,0.127109]
[1724165548288,5.90531039,2590.9,2590.8,0.127109]
[1724165548454,9.80307428,2590.9,2590.8,0.127109]
[1724165550090,19.16243428,2590.9,2590.8,0.127109]
[1724165550382,5.40310389,2590.9,2590.8,0.127109]
[1724165551885,9.26276389,2590.9,2590.8,0.127109]
[1724165552036,5.40310389,2590.9,2590.8,0.127109]
[1724165552242,0.03810389,2590.9,2590.8,3.986919]
[1724165552491,0.03810389,2590.9,2590.8,0.5258009]
[1724165552691,15.43632,2590.9,2590.8,0.127109]
[1724165552838,9.22466,2590.9,2590.8,0.127109]
[1724165553041,13.12100883,2590.9,2590.8,0.127109]
[1724165553246,14.43310971,2590.9,2590.8,0.127109]
[1724165553555,17.43310971,2590.9,2590.8,0.127109]
[1724165554084,14.43310971,2590.9,2590.8,0.127109]
[1724165554250,15.47300883,2590.9,2590.8,0.127109]
[1724165554453,18.47300883,2590.9,2590.8,0.127109]
[1724165554710,22.33266883,2590.9,2590.8,0.127109]
[1724165554937,26.19232883,2590.9,2590.8,0.127109]
[1724165555139,24.95190171,2590.9,2590.8,0.127109]
[1724165556262,21.09224171,2590.9,2590.8,0.127109]
[1724165556423,9.26134883,2590.9,2590.8,0.127109]
[1724165556620,13.12100883,2590.9,2590.8,0.127109]
[1724165557131,9.26134883,2590.9,2590.8,0.127109]
[1724165558142,5.40168883,2590.9,2590.8,0.127109]
[1724165558368,0.03668883,2590.9,2590.8,0.127109]
[1724165558707,3.85966,2590.9,2590.8,0.127109]
[1724165558902,5.07001973,2590.9,2590.8,0.127109]
[1724165559250,3.89580073,2590.9,2590.8,0.127109]
[1724165559560,7.75546073,2590.9,2590.8,0.127109]
[1724165560129,3.89580073,2590.9,2590.8,0.127109]
[1724165560344,0.03614073,2590.9,2590.8,0.127109]
[1724165562434,0.03614073,2590.9,2590.8,3.986919]
[1724165562687,0.03614073,2590.9,2590.8,0.127109]
[1724165562989,4.023,2591.0,2590.8,0.127109]
[1724165563149,0.03683991,2590.9,2590.8,0.127109]
[1724165563352,0.03683991,2590.9,2590.8,3.986919]
[1724165563882,4.023,2591.3,2590.8,3.986919]